[Event "GrandPrix_29.05"]
[Site "Chess.com"]
[Date "2020.05.29"]
[Round "7"]
[White "AliKa2810"]
[Black "switlave"]
[Result "1/2-1/2"]
[WhiteElo "2134"]
[BlackElo "2057"]
[TimeControl "600+2"]
[EndTime "12:34:40 PDT"]
[Termination "Game drawn by repetition"]

1. d4 {[%clk 0:10:01.9]} 1... Nf6 {[%clk 0:05:05]} 2. c4 {[%clk 0:10:01.3]} 2...
g6 {[%clk 0:05:05.8]} 3. Nc3 {[%clk 0:10:01.4]} 3... d5 {[%clk 0:05:07.3]} 4.
cxd5 {[%clk 0:09:41.4]} 4... Nxd5 {[%clk 0:05:07.8]} 5. e4 {[%clk 0:09:43]} 5...
Nxc3 {[%clk 0:05:09]} 6. bxc3 {[%clk 0:09:44.9]} 6... Bg7 {[%clk 0:05:10.6]} 7.
Be3 {[%clk 0:09:36.1]} 7... c5 {[%clk 0:05:11.2]} 8. Nf3 {[%clk 0:09:32]} 8...
Qa5 {[%clk 0:05:08.5]} 9. Qd2 {[%clk 0:09:29.1]} 9... cxd4 {[%clk 0:05:09.6]}
10. cxd4 {[%clk 0:09:29.5]} 10... Qxd2+ {[%clk 0:05:10.7]} 11. Kxd2 {[%clk
0:09:02.4]} 11... O-O {[%clk 0:05:12.6]} 12. Rc1 {[%clk 0:09:02.7]} 12... Rd8
{[%clk 0:05:12.9]} 13. Bd3 {[%clk 0:08:53]} 13... e6 {[%clk 0:05:04.1]} 14. Bg5
{[%clk 0:08:47.2]} 14... f6 {[%clk 0:05:00.8]} 15. Be3 {[%clk 0:08:47.6]} 15...
Nc6 {[%clk 0:05:01.7]} 16. Ke2 {[%clk 0:08:22.3]} 16... f5 {[%clk 0:04:18.3]}
17. exf5 {[%clk 0:08:21.3]} 17... gxf5 {[%clk 0:04:15.5]} 18. Bc4 {[%clk
0:07:49.3]} 18... Bd7 {[%clk 0:03:11.2]} 19. Rhd1 {[%clk 0:06:49.5]} 19... Na5
{[%clk 0:03:04.4]} 20. Bd3 {[%clk 0:06:50.2]} 20... Ba4 {[%clk 0:02:37.3]} 21.
Rd2 {[%clk 0:06:48.7]} 21... Bc6 {[%clk 0:02:04.5]} 22. Ne5 {[%clk 0:06:14.1]}
22... Bd5 {[%clk 0:01:49.5]} 23. Rc7 {[%clk 0:06:13.5]} 23... Rac8 {[%clk
0:01:43.5]} 24. Rdc2 {[%clk 0:06:12.3]} 24... Nc6 {[%clk 0:01:20.2]} 25. Rxc8
{[%clk 0:05:06.6]} 25... Rxc8 {[%clk 0:01:19]} 26. f3 {[%clk 0:04:50.3]} 26...
Kf8 {[%clk 0:01:07.6]} 27. g4 {[%clk 0:04:45.9]} 27... f4 {[%clk 0:00:56.8]} 28.
Nxc6 {[%clk 0:04:23]} 28... fxe3 {[%clk 0:00:53.8]} 29. Nb4 {[%clk 0:04:01.4]}
29... Rxc2+ {[%clk 0:00:50.7]} 30. Bxc2 {[%clk 0:04:02.3]} 30... Bxd4 {[%clk
0:00:45.1]} 31. Bxh7 {[%clk 0:03:47.8]} 31... Kg7 {[%clk 0:00:30.4]} 32. Bd3
{[%clk 0:03:37.4]} 32... Kf6 {[%clk 0:00:28.4]} 33. h4 {[%clk 0:03:32.5]} 33...
Ke5 {[%clk 0:00:26.8]} 34. Nc2 {[%clk 0:01:57.1]} 34... Bc5 {[%clk 0:00:15.5]}
35. Nxe3 {[%clk 0:01:40.4]} 35... Bxa2 {[%clk 0:00:14.9]} 36. h5 {[%clk
0:01:41.9]} 36... Kf4 {[%clk 0:00:14.1]} 37. Ng2+ {[%clk 0:01:00]} 37... Kg5
{[%clk 0:00:13]} 38. Kd2 {[%clk 0:01:01.2]} 38... a6 {[%clk 0:00:13.3]} 39. Be2
{[%clk 0:01:01.9]} 39... Bd6 {[%clk 0:00:12.4]} 40. Ke3 {[%clk 0:01:02.5]} 40...
Bc5+ {[%clk 0:00:13.9]} 41. Ke4 {[%clk 0:01:00.4]} 41... Bd5+ {[%clk 0:00:15.2]}
42. Ke5 {[%clk 0:01:01.3]} 42... Kh6 {[%clk 0:00:16.3]} 43. Nf4 {[%clk
0:00:56.6]} 43... a5 {[%clk 0:00:16.9]} 44. Nxd5 {[%clk 0:00:43.1]} 44... exd5
{[%clk 0:00:17.8]} 45. Kf6 {[%clk 0:00:40.6]} 45... Be3 {[%clk 0:00:17]} 46. Ke5
{[%clk 0:00:32.3]} 46... a4 {[%clk 0:00:18.3]} 47. Kxd5 {[%clk 0:00:32.2]} 47...
a3 {[%clk 0:00:19.6]} 48. Bc4 {[%clk 0:00:33.4]} 48... Kg5 {[%clk 0:00:21.2]}
49. Ke6 {[%clk 0:00:29.9]} 49... Bf4 {[%clk 0:00:21.4]} 50. Kf7 {[%clk
0:00:30.8]} 50... Kh6 {[%clk 0:00:20.4]} 51. Kf6 {[%clk 0:00:30.5]} 51... b5
{[%clk 0:00:21.7]} 52. Ba2 {[%clk 0:00:30.9]} 52... Bd2 {[%clk 0:00:21.2]} 53.
Kf5 {[%clk 0:00:31.4]} 53... b4 {[%clk 0:00:21.9]} 54. f4 {[%clk 0:00:32.4]}
54... Bc1 {[%clk 0:00:23.2]} 55. Bf7 {[%clk 0:00:28.1]} 55... Kg7 {[%clk
0:00:22.6]} 56. Bb3 {[%clk 0:00:26.9]} 56... Kh6 {[%clk 0:00:23.9]} 57. Ke5
{[%clk 0:00:28.1]} 57... Bb2+ {[%clk 0:00:22.2]} 58. Ke6 {[%clk 0:00:26.6]}
58... Bc3 {[%clk 0:00:18.7]} 59. Kf7 {[%clk 0:00:12.6]} 59... Bd4 {[%clk
0:00:17.9]} 60. Ba2 {[%clk 0:00:13.1]} 60... Bc3 {[%clk 0:00:18.9]} 61. Bc4
{[%clk 0:00:14.4]} 61... Bb2 {[%clk 0:00:20.2]} 62. Ke6 {[%clk 0:00:09.9]} 62...
Bc3 {[%clk 0:00:20.1]} 63. Ba2 {[%clk 0:00:09.5]} 63... Bb2 {[%clk 0:00:21.3]}
64. f5 {[%clk 0:00:09.7]} 64... Kg5 {[%clk 0:00:22]} 65. f6 {[%clk 0:00:10.6]}
65... Bxf6 {[%clk 0:00:22]} 66. h6 {[%clk 0:00:11.4]} 66... Bc3 {[%clk
0:00:20.2]} 67. h7 {[%clk 0:00:10.9]} 67... Kxg4 {[%clk 0:00:21.1]} 68. Kd5
{[%clk 0:00:11.9]} 68... Kf3 {[%clk 0:00:22.4]} 69. Kc4 {[%clk 0:00:13]} 69...
Ke2 {[%clk 0:00:23.7]} 70. Kb3 {[%clk 0:00:12.6]} 70... Kd2 {[%clk 0:00:24.5]}
71. Bb1 {[%clk 0:00:13.7]} 71... Kc1 {[%clk 0:00:25.6]} 72. Bf5 {[%clk
0:00:13.5]} 72... Kd2 {[%clk 0:00:26.5]} 73. Be4 {[%clk 0:00:14.5]} 73... Kc1
{[%clk 0:00:27.7]} 74. Bf5 {[%clk 0:00:15.8]} 74... Bh8 {[%clk 0:00:28.5]} 75.
Bg6 {[%clk 0:00:16.9]} 75... Kd2 {[%clk 0:00:29.3]} 76. Bf5 {[%clk 0:00:18.1]}
76... Kc1 {[%clk 0:00:30.4]} 77. Bg6 {[%clk 0:00:18.8]} 77... Kd2 {[%clk
0:00:31.6]} 78. Bf5 {[%clk 0:00:20.1]} 78... Kc1 {[%clk 0:00:32.9]} 1/2-1/2

[Event "GrandPrix_29.05"]
[Site "Chess.com"]
[Date "2020.05.29"]
[Round "7"]
[White "moro182"]
[Black "SavelijTartakover"]
[Result "0-1"]
[WhiteElo "2544"]
[BlackElo "2544"]
[TimeControl "600+2"]
[EndTime "12:34:52 PDT"]
[Termination "SavelijTartakover won by resignation"]

1. d4 {[%clk 0:10:01.9]} 1... d5 {[%clk 0:09:55]} 2. Bf4 {[%clk 0:10:00]} 2...
Nf6 {[%clk 0:09:53.2]} 3. e3 {[%clk 0:10:01.3]} 3... e6 {[%clk 0:09:54]} 4. Nf3
{[%clk 0:10:01.7]} 4... c5 {[%clk 0:09:54.2]} 5. Nbd2 {[%clk 0:10:02.9]} 5...
Bd6 {[%clk 0:09:53.6]} 6. c3 {[%clk 0:10:04]} 6... O-O {[%clk 0:09:51.2]} 7. Bg3
{[%clk 0:10:02.3]} 7... Qc7 {[%clk 0:09:48.9]} 8. Bd3 {[%clk 0:09:59.7]} 8...
Nbd7 {[%clk 0:09:48.8]} 9. O-O {[%clk 0:09:53.5]} 9... b6 {[%clk 0:09:48.3]} 10.
Qe2 {[%clk 0:09:23]} 10... Bb7 {[%clk 0:09:48.1]} 11. Bxd6 {[%clk 0:09:09.4]}
11... Qxd6 {[%clk 0:09:48]} 12. e4 {[%clk 0:09:11.3]} 12... dxe4 {[%clk
0:09:38.6]} 13. Nxe4 {[%clk 0:09:13.2]} 13... Nxe4 {[%clk 0:09:38.4]} 14. Bxe4
{[%clk 0:09:15.1]} 14... Bxe4 {[%clk 0:09:37.8]} 15. Qxe4 {[%clk 0:09:17]} 15...
Nf6 {[%clk 0:09:38.2]} 16. Qb7 {[%clk 0:08:56.9]} 16... Rfb8 {[%clk 0:09:15]}
17. Qa6 {[%clk 0:08:46.5]} 17... Rd8 {[%clk 0:09:15.4]} 18. Rad1 {[%clk
0:08:36.9]} 18... h6 {[%clk 0:09:12.3]} 19. Rfe1 {[%clk 0:08:26.3]} 19... Qc7
{[%clk 0:09:04.5]} 20. dxc5 {[%clk 0:08:17.9]} 20... Qxc5 {[%clk 0:08:38.5]} 21.
h3 {[%clk 0:07:44.5]} 21... Nd5 {[%clk 0:08:31.5]} 22. Rd4 {[%clk 0:07:32.7]}
22... b5 {[%clk 0:08:13.2]} 23. Ne5 {[%clk 0:06:50.5]} 23... Qb6 {[%clk
0:07:28.2]} 24. Qxb6 {[%clk 0:06:37.3]} 24... Nxb6 {[%clk 0:07:28.6]} 25. Red1
{[%clk 0:06:29.8]} 25... Rxd4 {[%clk 0:07:28.3]} 26. Rxd4 {[%clk 0:06:30]} 26...
Rc8 {[%clk 0:07:28]} 27. Rd6 {[%clk 0:06:08.2]} 27... Rc7 {[%clk 0:06:13.6]} 28.
Rc6 {[%clk 0:05:07.6]} 28... Rb7 {[%clk 0:05:59.7]} 29. Kf1 {[%clk 0:04:48.7]}
29... Nc4 {[%clk 0:05:26.1]} 30. Nd3 {[%clk 0:04:28.5]} 30... Rd7 {[%clk
0:04:57.4]} 31. Ke2 {[%clk 0:04:18.3]} 31... Kh7 {[%clk 0:04:46.4]} 32. Rc5
{[%clk 0:03:49.1]} 32... a6 {[%clk 0:04:05.1]} 33. b3 {[%clk 0:03:41.5]} 33...
Nd6 {[%clk 0:03:47.2]} 34. f3 {[%clk 0:02:46.7]} 34... Nf5 {[%clk 0:02:06.5]}
35. Ne5 {[%clk 0:02:33.7]} 35... Ra7 {[%clk 0:02:06.4]} 36. g4 {[%clk 0:02:13]}
36... Nd6 {[%clk 0:01:55.1]} 37. Rc6 {[%clk 0:02:07.7]} 37... Ne8 {[%clk
0:01:49.9]} 38. h4 {[%clk 0:01:06.7]} 38... g5 {[%clk 0:01:41.2]} 39. h5 {[%clk
0:00:55.8]} 39... Kg7 {[%clk 0:01:30.1]} 40. Ke3 {[%clk 0:00:51.9]} 40... Nf6
{[%clk 0:01:20.1]} 41. c4 {[%clk 0:00:51.2]} 41... bxc4 {[%clk 0:01:20.6]} 42.
bxc4 {[%clk 0:00:53.1]} 42... a5 {[%clk 0:01:22.1]} 43. Rb6 {[%clk 0:00:44]}
43... a4 {[%clk 0:01:17.6]} 44. Rb4 {[%clk 0:00:19.9]} 44... a3 {[%clk
0:01:11.1]} 45. Kd4 {[%clk 0:00:14.8]} 45... Ne8 {[%clk 0:00:39.7]} 46. Kc3
{[%clk 0:00:09.1]} 46... Kf6 {[%clk 0:00:31.1]} 47. Nc6 {[%clk 0:00:04.4]} 47...
Rc7 {[%clk 0:00:18.9]} 48. Nd4 {[%clk 0:00:05.3]} 48... Nd6 {[%clk 0:00:14.8]}
49. Nb5 {[%clk 0:00:06.1]} 49... Rc6 {[%clk 0:00:09.1]} 50. Nxd6 {[%clk
0:00:06.7]} 50... Rxd6 {[%clk 0:00:10.1]} 51. c5 {[%clk 0:00:06.1]} 51... Rd1
{[%clk 0:00:09.7]} 52. Rc4 {[%clk 0:00:04.9]} 52... Ke7 {[%clk 0:00:09.1]} 53.
Kb4 {[%clk 0:00:03.2]} 53... Kd7 {[%clk 0:00:07.9]} 54. Kxa3 {[%clk 0:00:03.8]}
54... Rd3+ {[%clk 0:00:08.6]} 55. Kb4 {[%clk 0:00:05.2]} 55... Rxf3 {[%clk
0:00:09.7]} 56. a4 {[%clk 0:00:04.1]} 56... Kc6 {[%clk 0:00:10]} 57. a5 {[%clk
0:00:04]} 57... Rf1 {[%clk 0:00:11]} 58. Rd4 {[%clk 0:00:04.9]} 58... Rb1+
{[%clk 0:00:11.4]} 59. Kc4 {[%clk 0:00:06.3]} 59... Rc1+ {[%clk 0:00:12]} 60.
Kb4 {[%clk 0:00:07.8]} 60... Rxc5 {[%clk 0:00:11.6]} 61. Rd8 {[%clk 0:00:08.8]}
61... Rb5+ {[%clk 0:00:12]} 62. Ka4 {[%clk 0:00:10.1]} 62... Rb1 {[%clk
0:00:12.5]} 63. Rc8+ {[%clk 0:00:11.2]} 63... Kd5 {[%clk 0:00:13]} 64. a6 {[%clk
0:00:11.9]} 64... f5 {[%clk 0:00:13.1]} 65. gxf5 {[%clk 0:00:11.1]} 65... exf5
{[%clk 0:00:13.5]} 66. Rh8 {[%clk 0:00:12.6]} 66... g4 {[%clk 0:00:13.2]} 67.
Rxh6 {[%clk 0:00:13.6]} 67... f4 {[%clk 0:00:13.6]} 68. Rg6 {[%clk 0:00:07.5]}
68... f3 {[%clk 0:00:12.6]} 69. Rxg4 {[%clk 0:00:04.8]} 69... f2 {[%clk
0:00:12.6]} 70. Rf4 {[%clk 0:00:03.8]} 70... f1=Q {[%clk 0:00:13]} 71. Rxf1
{[%clk 0:00:04.6]} 71... Rxf1 {[%clk 0:00:14.3]} 72. Ka5 {[%clk 0:00:06.1]}
72... Kc6 {[%clk 0:00:14]} 0-1

[Event "GrandPrix_29.05"]
[Site "Chess.com"]
[Date "2020.05.29"]
[Round "7"]
[White "0plaksin0"]
[Black "ly4o"]
[Result "1-0"]
[WhiteElo "2162"]
[BlackElo "2006"]
[TimeControl "600+2"]
[EndTime "12:34:57 PDT"]
[Termination "0plaksin0 won by resignation"]

1. a4 {[%clk 0:10:01.2]} 1... d5 {[%clk 0:10:00.6]} 2. b4 {[%clk 0:10:00.8]}
2... e5 {[%clk 0:10:01.1]} 3. b5 {[%clk 0:09:57.1]} 3... Bd6 {[%clk 0:10:00]} 4.
Bb2 {[%clk 0:09:57.9]} 4... Nf6 {[%clk 0:09:58.8]} 5. e3 {[%clk 0:09:58]} 5...
O-O {[%clk 0:09:59.8]} 6. d3 {[%clk 0:09:59]} 6... Bg4 {[%clk 0:09:59.9]} 7. Be2
{[%clk 0:09:59.3]} 7... Bf5 {[%clk 0:09:53.7]} 8. Nf3 {[%clk 0:09:59.4]} 8...
Nbd7 {[%clk 0:09:54.8]} 9. O-O {[%clk 0:10:00.3]} 9... c6 {[%clk 0:09:55.7]} 10.
Nc3 {[%clk 0:09:59.5]} 10... h6 {[%clk 0:09:56.3]} 11. Ba3 {[%clk 0:09:55.3]}
11... Bxa3 {[%clk 0:09:56.1]} 12. Rxa3 {[%clk 0:09:57.2]} 12... Re8 {[%clk
0:09:57.3]} 13. d4 {[%clk 0:06:32.8]} 13... e4 {[%clk 0:09:55.9]} 14. Nd2 {[%clk
0:06:33.8]} 14... Qe7 {[%clk 0:09:54.9]} 15. Rb3 {[%clk 0:06:32.3]} 15... Rec8
{[%clk 0:09:48.6]} 16. bxc6 {[%clk 0:06:32.4]} 16... bxc6 {[%clk 0:09:49.8]} 17.
Rb7 {[%clk 0:06:26.9]} 17... Ne8 {[%clk 0:09:46.3]} 18. Bg4 {[%clk 0:06:17.6]}
18... Nd6 {[%clk 0:09:44]} 19. Rb2 {[%clk 0:06:12]} 19... Bxg4 {[%clk
0:09:44.3]} 20. Qxg4 {[%clk 0:06:12.7]} 20... f5 {[%clk 0:09:28.4]} 21. Qe2
{[%clk 0:05:52.3]} 21... Rab8 {[%clk 0:09:18.5]} 22. Rfb1 {[%clk 0:05:49.8]}
22... Rxb2 {[%clk 0:09:18.3]} 23. Rxb2 {[%clk 0:05:51.7]} 23... Rb8 {[%clk
0:09:19.9]} 24. Rxb8+ {[%clk 0:05:37.5]} 24... Nxb8 {[%clk 0:09:21.8]} 25. Qd1
{[%clk 0:05:34.7]} 25... Qb7 {[%clk 0:09:21.9]} 26. Qb1 {[%clk 0:05:35.5]} 26...
Qxb1+ {[%clk 0:09:06.5]} 27. Ncxb1 {[%clk 0:05:37.4]} 27... Nd7 {[%clk
0:09:07.5]} 28. Na3 {[%clk 0:05:19.9]} 28... Kf7 {[%clk 0:09:05.7]} 29. c4
{[%clk 0:05:14.1]} 29... Ke6 {[%clk 0:09:05.4]} 30. c5 {[%clk 0:05:12.2]} 30...
Nb7 {[%clk 0:08:58.8]} 31. Nb3 {[%clk 0:05:11.4]} 31... g5 {[%clk 0:09:00]} 32.
Nc2 {[%clk 0:05:10.9]} 32... a5 {[%clk 0:08:58.3]} 33. g3 {[%clk 0:04:56.6]}
33... Kf6 {[%clk 0:08:52.4]} 34. Na3 {[%clk 0:04:43.7]} 34... Nf8 {[%clk
0:08:50.3]} 35. Kf1 {[%clk 0:04:14.1]} 35... Ne6 {[%clk 0:08:50.4]} 36. Ke2
{[%clk 0:03:40.4]} 36... f4 {[%clk 0:08:50.7]} 37. Nb1 {[%clk 0:02:54]} 37...
Kf5 {[%clk 0:08:16.9]} 38. h3 {[%clk 0:02:14.3]} 38... f3+ {[%clk 0:08:05.4]}
39. Kd2 {[%clk 0:02:09]} 39... Nc7 {[%clk 0:08:05.8]} 40. Na3 {[%clk 0:01:57.4]}
40... Na6 {[%clk 0:08:05]} 41. Nc2 {[%clk 0:01:58.6]} 41... Nb8 {[%clk 0:08:05]}
42. Nc1 {[%clk 0:01:50.4]} 42... h5 {[%clk 0:08:04.5]} 43. Na2 {[%clk
0:01:39.6]} 43... Nd7 {[%clk 0:07:50.5]} 44. Ke1 {[%clk 0:01:25.6]} 44... Nf6
{[%clk 0:07:45.1]} 45. Nc3 {[%clk 0:01:13.3]} 45... Ke6 {[%clk 0:07:42.4]} 46.
Na1 {[%clk 0:00:58.3]} 46... Kd7 {[%clk 0:07:43.4]} 47. Nb3 {[%clk 0:00:57.4]}
47... Kc7 {[%clk 0:07:42.6]} 48. Nd2 {[%clk 0:00:45.3]} 48... Kb8 {[%clk
0:07:42.4]} 49. Nf1 {[%clk 0:00:44.3]} 49... Nd8 {[%clk 0:07:38.4]} 50. Kd2
{[%clk 0:00:40.1]} 50... Ne6 {[%clk 0:07:37.4]} 51. Nh2 {[%clk 0:00:29.7]} 51...
Nc7 {[%clk 0:07:37]} 52. Kc2 {[%clk 0:00:29.9]} 52... Na6 {[%clk 0:07:37.8]} 53.
Na2 {[%clk 0:00:30.3]} 53... Kb7 {[%clk 0:07:35.6]} 54. Kb3 {[%clk 0:00:31.6]}
54... Nc7 {[%clk 0:07:34.4]} 55. Nc3 {[%clk 0:00:29.8]} 55... Ne6 {[%clk
0:07:31.6]} 56. Nd1 {[%clk 0:00:23.9]} 56... Ng7 {[%clk 0:07:32.5]} 57. Kc3
{[%clk 0:00:22.3]} 57... Nf5 {[%clk 0:07:32.7]} 58. Kb3 {[%clk 0:00:19.3]} 58...
Ng7 {[%clk 0:07:18.9]} 59. Kc3 {[%clk 0:00:15.4]} 59... Ne6 {[%clk 0:07:20.1]}
60. Kd2 {[%clk 0:00:15.2]} 60... Ka6 {[%clk 0:07:19.5]} 61. Nc3 {[%clk
0:00:15.7]} 61... Ka7 {[%clk 0:07:20.5]} 62. Na2 {[%clk 0:00:16.4]} 62... Nd7
{[%clk 0:07:12.4]} 63. Nc3 {[%clk 0:00:15.3]} 63... Ka6 {[%clk 0:07:13.1]} 64.
Nf1 {[%clk 0:00:14.3]} 64... Nc7 {[%clk 0:07:12.5]} 65. Nh2 {[%clk 0:00:14.5]}
65... Ne8 {[%clk 0:07:13.5]} 66. Nf1 {[%clk 0:00:09.6]} 66... Nef6 {[%clk
0:07:13.9]} 67. Ke1 {[%clk 0:00:09.8]} 67... Ka7 {[%clk 0:07:12.2]} 68. Nd2
{[%clk 0:00:10.7]} 68... Nb8 {[%clk 0:07:12.7]} 69. Nb3 {[%clk 0:00:10.3]} 69...
Ka6 {[%clk 0:07:14.1]} 70. Kf1 {[%clk 0:00:09.6]} 70... Nbd7 {[%clk 0:07:15.2]}
71. Ke1 {[%clk 0:00:09.7]} 71... Nf8 {[%clk 0:07:16.4]} 72. Kf1 {[%clk
0:00:07.1]} 72... Ne6 {[%clk 0:07:16.6]} 73. Nd2 {[%clk 0:00:05.5]} 73... Ng7
{[%clk 0:07:17.5]} 74. Ndb1 {[%clk 0:00:05.9]} 74... Nf5 {[%clk 0:07:18.4]} 75.
Kg1 {[%clk 0:00:04.5]} 75... h4 {[%clk 0:07:11.7]} 76. g4 {[%clk 0:00:04.8]}
76... Nh6 {[%clk 0:07:12.7]} 77. Na3 {[%clk 0:00:04.6]} 77... Nhxg4 {[%clk
0:07:10.6]} 78. hxg4 {[%clk 0:00:06.5]} 78... Nxg4 {[%clk 0:07:12.5]} 79. Nd1
{[%clk 0:00:07.2]} 79... Nh6 {[%clk 0:07:12.7]} 80. Nb1 {[%clk 0:00:06]} 80...
g4 {[%clk 0:07:13]} 81. Nd2 {[%clk 0:00:06.5]} 81... Nf5 {[%clk 0:07:14.3]} 82.
Nf1 {[%clk 0:00:07.1]} 82... g3 {[%clk 0:07:15.1]} 83. Nc3 {[%clk 0:00:03.8]}
83... Kb7 {[%clk 0:07:14.2]} 84. Nd1 {[%clk 0:00:03.8]} 84... Kc7 {[%clk
0:07:14.9]} 85. Nc3 {[%clk 0:00:04.8]} 85... Kd7 {[%clk 0:07:10]} 86. Nb1 {[%clk
0:00:05.9]} 86... Kc7 {[%clk 0:05:50.5]} 87. Nbd2 {[%clk 0:00:06.4]} 87... Kb7
{[%clk 0:05:51.7]} 88. Nb1 {[%clk 0:00:05.4]} 88... Ka6 {[%clk 0:05:10.2]} 89.
Na3 {[%clk 0:00:05.5]} 89... Kb7 {[%clk 0:05:10.8]} 90. Nc2 {[%clk 0:00:06.7]}
90... Kc7 {[%clk 0:05:11.3]} 91. Na3 {[%clk 0:00:04.8]} 91... Kb7 {[%clk
0:04:22]} 92. Nc2 {[%clk 0:00:05.1]} 92... Ka6 {[%clk 0:04:22.7]} 93. Na1 {[%clk
0:00:06.4]} 93... Ka7 {[%clk 0:04:23.1]} 94. Nb3 {[%clk 0:00:07.7]} 94... Ka6
{[%clk 0:04:24.5]} 95. Nc1 {[%clk 0:00:09]} 95... Kb7 {[%clk 0:04:24.9]} 96. Na2
{[%clk 0:00:10]} 96... Kc7 {[%clk 0:04:24]} 97. Nc3 {[%clk 0:00:11.3]} 97... Kd7
{[%clk 0:04:16]} 98. Na2 {[%clk 0:00:08.1]} 98... Ke6 {[%clk 0:03:31.4]} 99. Nc1
{[%clk 0:00:09.1]} 99... Kf6 {[%clk 0:03:32.4]} 100. Nb3 {[%clk 0:00:10.2]}
100... Kg5 {[%clk 0:03:29.3]} 101. Nxa5 {[%clk 0:00:11.1]} 101... Kg4 {[%clk
0:03:30.7]} 102. Nxc6 {[%clk 0:00:11.1]} 102... g2 {[%clk 0:03:32.1]} 103. Nh2+
{[%clk 0:00:11.1]} 103... Kh3 {[%clk 0:03:33.4]} 104. Ne5 {[%clk 0:00:04.4]}
104... Ng3 {[%clk 0:03:32.3]} 105. fxg3 {[%clk 0:00:05.1]} 105... Kxg3 {[%clk
0:03:34.2]} 106. Neg4 {[%clk 0:00:03.3]} 106... h3 {[%clk 0:03:16.2]} 107. Nf2
{[%clk 0:00:05.2]} 107... Kh4 {[%clk 0:03:16.6]} 108. c6 {[%clk 0:00:07.1]} 1-0

[Event "GrandPrix_29.05"]
[Site "Chess.com"]
[Date "2020.05.29"]
[Round "7"]
[White "ValeriyGrinev"]
[Black "Kildepiotr"]
[Result "1-0"]
[WhiteElo "2103"]
[BlackElo "2129"]
[TimeControl "600+2"]
[EndTime "12:35:14 PDT"]
[Termination "ValeriyGrinev won by resignation"]

1. c4 {[%clk 0:10:01.9]} 1... g6 {[%clk 0:09:54.8]} 2. Nc3 {[%clk 0:10:01.5]}
2... Bg7 {[%clk 0:09:55.9]} 3. e4 {[%clk 0:10:02.3]} 3... d6 {[%clk 0:09:53.9]}
4. d4 {[%clk 0:10:03.7]} 4... Nd7 {[%clk 0:09:54.5]} 5. Be2 {[%clk 0:10:04.1]}
5... e5 {[%clk 0:09:55.5]} 6. Nf3 {[%clk 0:10:05.2]} 6... Ngf6 {[%clk
0:09:54.4]} 7. O-O {[%clk 0:10:05.3]} 7... O-O {[%clk 0:09:54.9]} 8. Qc2 {[%clk
0:10:06.2]} 8... exd4 {[%clk 0:09:51]} 9. Nxd4 {[%clk 0:10:06.5]} 9... Re8
{[%clk 0:09:50.2]} 10. Bg5 {[%clk 0:10:02]} 10... Nc5 {[%clk 0:09:48.7]} 11. f3
{[%clk 0:09:48.4]} 11... c6 {[%clk 0:09:43.1]} 12. Rad1 {[%clk 0:09:46.8]} 12...
a5 {[%clk 0:09:40.8]} 13. Kh1 {[%clk 0:09:42.4]} 13... Qb6 {[%clk 0:09:39.8]}
14. Qd2 {[%clk 0:09:34]} 14... Nfd7 {[%clk 0:09:33.2]} 15. Be3 {[%clk
0:09:07.4]} 15... a4 {[%clk 0:09:26.5]} 16. Rfe1 {[%clk 0:08:56.8]} 16... Qb4
{[%clk 0:08:55.9]} 17. Rb1 {[%clk 0:08:35.1]} 17... Ne5 {[%clk 0:08:36.3]} 18.
Nc2 {[%clk 0:08:32.2]} 18... Qa5 {[%clk 0:08:30.8]} 19. Qxd6 {[%clk 0:08:30.7]}
19... Bf8 {[%clk 0:08:24.1]} 20. Qd4 {[%clk 0:07:56.7]} 20... f6 {[%clk
0:08:14.7]} 21. Bg1 {[%clk 0:06:54.9]} 21... Be6 {[%clk 0:08:00.6]} 22. Na3
{[%clk 0:06:52.6]} 22... Rad8 {[%clk 0:07:56.4]} 23. Qe3 {[%clk 0:06:53.6]}
23... Ncd3 {[%clk 0:07:52.7]} 24. Qb6 {[%clk 0:05:06]} 24... Qxb6 {[%clk
0:07:28.2]} 25. Bxb6 {[%clk 0:05:07.9]} 25... Nxe1 {[%clk 0:07:27]} 26. Bxd8
{[%clk 0:05:02.6]} 26... Rxd8 {[%clk 0:07:27.4]} 27. Rxe1 {[%clk 0:05:03.4]}
27... Rd2 {[%clk 0:06:20]} 28. Nxa4 {[%clk 0:05:02.9]} 28... Bxa3 {[%clk
0:06:17.6]} 29. bxa3 {[%clk 0:05:02.9]} 29... Rxa2 {[%clk 0:06:14.8]} 30. Nc5
{[%clk 0:05:01.7]} 30... Bxc4 {[%clk 0:06:11.2]} 31. Bxc4+ {[%clk 0:05:00.1]}
31... Nxc4 {[%clk 0:06:13.1]} 32. Nxb7 {[%clk 0:05:00.2]} 32... Nxa3 {[%clk
0:06:06.1]} 33. Kg1 {[%clk 0:04:57]} 33... Rb2 {[%clk 0:06:01.6]} 34. Nc5 {[%clk
0:04:04.4]} 34... Rc2 {[%clk 0:06:01.1]} 35. Nd7 {[%clk 0:04:05.2]} 35... Kf7
{[%clk 0:05:58.8]} 36. Ra1 {[%clk 0:04:05.9]} 36... Nb5 {[%clk 0:05:58.4]} 37.
Ra5 {[%clk 0:03:10.5]} 37... Ke6 {[%clk 0:05:03.1]} 38. Nf8+ {[%clk 0:03:00.4]}
38... Ke5 {[%clk 0:04:42.5]} 39. Nd7+ {[%clk 0:02:58.3]} 39... Ke6 {[%clk
0:04:05.5]} 40. Nf8+ {[%clk 0:02:56.6]} 40... Ke7 {[%clk 0:03:56.1]} 41. Nxh7
{[%clk 0:02:57.4]} 41... Kf7 {[%clk 0:03:56.7]} 42. e5 {[%clk 0:02:58.7]} 42...
fxe5 {[%clk 0:03:56.4]} 43. Ng5+ {[%clk 0:02:58.5]} 43... Kf6 {[%clk 0:03:56.8]}
44. Ne4+ {[%clk 0:03:00.4]} 44... Kf5 {[%clk 0:03:52.7]} 45. Ra8 {[%clk
0:02:51.5]} 45... Kf4 {[%clk 0:03:50.1]} 46. h4 {[%clk 0:02:44.1]} 46... Nd4
{[%clk 0:03:45.9]} 47. Rg8 {[%clk 0:02:31.6]} 47... c5 {[%clk 0:03:44.7]} 48.
Rxg6 {[%clk 0:02:32.1]} 48... c4 {[%clk 0:03:45.8]} 49. Rg8 {[%clk 0:02:17.1]}
49... c3 {[%clk 0:03:44]} 50. Rc8 {[%clk 0:02:06.9]} 50... Ne2+ {[%clk
0:03:32.4]} 51. Kh2 {[%clk 0:01:53.6]} 51... Ke3 {[%clk 0:03:27.2]} 52. h5
{[%clk 0:01:46.9]} 52... Nf4 {[%clk 0:02:55.3]} 53. Rxc3+ {[%clk 0:01:43.5]}
53... Rxc3 {[%clk 0:02:56]} 54. Nxc3 {[%clk 0:01:45.4]} 54... Nxh5 {[%clk
0:02:56.9]} 55. Nd5+ {[%clk 0:01:33.4]} 55... Kd4 {[%clk 0:02:54.9]} 56. g4
{[%clk 0:01:34.9]} 56... Ng7 {[%clk 0:02:49.8]} 57. Nf6 {[%clk 0:01:35.7]} 57...
Ne6 {[%clk 0:02:48.5]} 58. Kg3 {[%clk 0:01:29.1]} 58... Ke3 {[%clk 0:02:48.8]}
59. Nd5+ {[%clk 0:01:26.8]} 59... Kd4 {[%clk 0:02:49.2]} 60. Ne7 {[%clk
0:01:28.7]} 60... e4 {[%clk 0:02:22.2]} 61. f4 {[%clk 0:00:54.1]} 61... e3
{[%clk 0:01:58.2]} 62. Nf5+ {[%clk 0:00:55.5]} 62... Kd3 {[%clk 0:01:58.9]} 63.
Nh4 {[%clk 0:00:49.7]} 63... e2 {[%clk 0:01:47.9]} 64. Ng2 {[%clk 0:00:50.9]}
64... Kd2 {[%clk 0:01:16.1]} 65. f5 {[%clk 0:00:50.2]} 65... Nc5 {[%clk
0:01:09.9]} 66. g5 {[%clk 0:00:44.9]} 66... Ne4+ {[%clk 0:00:53.3]} 67. Kf4
{[%clk 0:00:45.3]} 67... Nc3 {[%clk 0:00:47.2]} 68. f6 {[%clk 0:00:41.9]} 68...
Nd5+ {[%clk 0:00:47.8]} 69. Kf3 {[%clk 0:00:41.6]} 69... Ne3 {[%clk 0:00:47.5]}
70. f7 {[%clk 0:00:23.1]} 70... Nxg2 {[%clk 0:00:47.8]} 71. Kxg2 {[%clk
0:00:20.5]} 71... e1=Q {[%clk 0:00:48.1]} 72. f8=Q {[%clk 0:00:21.5]} 72... Qe6
{[%clk 0:00:21.9]} 73. Kg3 {[%clk 0:00:18.6]} 73... Kd3 {[%clk 0:00:19.8]} 74.
Qf6 {[%clk 0:00:17.8]} 74... Qe1+ {[%clk 0:00:14.9]} 75. Qf2 {[%clk 0:00:18]}
75... Qe5+ {[%clk 0:00:12.4]} 76. Qf4 {[%clk 0:00:18.9]} 76... Qe1+ {[%clk
0:00:12.7]} 77. Kg4 {[%clk 0:00:20.4]} 77... Qe8 {[%clk 0:00:10.6]} 78. Qf5+
{[%clk 0:00:19.8]} 78... Kd4 {[%clk 0:00:11.7]} 79. g6 {[%clk 0:00:21.3]} 79...
Qe2+ {[%clk 0:00:10.7]} 80. Kg5 {[%clk 0:00:22.8]} 80... Qe7+ {[%clk 0:00:09.4]}
81. Qf6+ {[%clk 0:00:23.8]} 1-0